[Event "Titled Tuesday Blitz January 04 2022"]
[White "Darini, Pouria"]
[Black "Hakobyan, Aram"]
[WhiteFideId "12502200"]
[BlackFideId "13306677"]
[WhiteElo "2489"]
[BlackElo "2557"]
[Result "1-0"]
[Round "03"]
[TimeControl "180+1"]
[Date "2022.01.04"]
[WhiteClock "0:00:20"]
[BlackClock "0:00:06"]

1. d4 {[%clk 0:03:00]}  Nf6 {[%clk 0:02:59]} 2. Bf4 {[%clk 0:02:59]}  d5 {[%clk 0:02:56]} 3. e3 {[%clk 0:02:59]}  e6 {[%clk 0:02:56]} 4. Nd2 {[%clk 0:03:00]}  Bd6 {[%clk 0:02:57]} 5. Bg3 {[%clk 0:03:00]}  c5 {[%clk 0:02:58]} 6. Ngf3 {[%clk 0:03:01]}  Qb6 {[%clk 0:02:57]} 7. dxc5 {[%clk 0:03:01]}  Qxc5 {[%clk 0:02:50]} 8. c4 {[%clk 0:02:59]}  Bxg3 {[%clk 0:02:47]} 9. hxg3 {[%clk 0:03:00]}  Nc6 {[%clk 0:02:46]} 10. Rc1 {[%clk 0:02:59]}  Qe7 {[%clk 0:02:43]} 11. cxd5 {[%clk 0:02:58]}  exd5 {[%clk 0:02:42]} 12. Bb5 {[%clk 0:02:58]}  Bd7 {[%clk 0:02:41]} 13. Bxc6 {[%clk 0:02:57]}  bxc6 {[%clk 0:02:40]} 14. Nb3 {[%clk 0:02:57]}  O-O {[%clk 0:02:38]} 15. Qd4 {[%clk 0:02:54]}  Ne4 {[%clk 0:01:50]} 16. Nfd2 {[%clk 0:02:46]}  Nxd2 {[%clk 0:01:39]} 17. Kxd2 {[%clk 0:02:43]}  Rab8 {[%clk 0:01:31]} 18. Qh4 {[%clk 0:02:43]}  Qb4+ {[%clk 0:01:16]} 19. Qxb4 {[%clk 0:02:25]}  Rxb4 {[%clk 0:01:17]} 20. Rh4 {[%clk 0:02:26]}  Rfb8 {[%clk 0:01:06]} 21. Rxb4 {[%clk 0:02:26]}  Rxb4 {[%clk 0:01:06]} 22. Rc5 {[%clk 0:02:26]}  Kf8 {[%clk 0:00:54]} 23. Kc3 {[%clk 0:02:27]}  Rb7 {[%clk 0:00:52]} 24. Ra5 {[%clk 0:02:27]}  Ke7 {[%clk 0:00:51]} 25. Nc5 {[%clk 0:02:28]}  Rc7 {[%clk 0:00:51]} 26. b4 {[%clk 0:02:28]}  Bc8 {[%clk 0:00:51]} 27. Kd4 {[%clk 0:02:28]}  h5 {[%clk 0:00:50]} 28. Ra3 {[%clk 0:02:28]}  Kd6 {[%clk 0:00:47]} 29. Rc3 {[%clk 0:01:55]}  g5 {[%clk 0:00:46]} 30. e4 {[%clk 0:01:54]}  Re7 {[%clk 0:00:20]} 31. Rf3 {[%clk 0:01:39]}  Be6 {[%clk 0:00:03]} 32. e5+ {[%clk 0:01:26]}  Kc7 {[%clk 0:00:03]} 33. Rf6 {[%clk 0:01:27]}  Kb6 {[%clk 0:00:03]} 34. Rh6 {[%clk 0:01:22]}  h4 {[%clk 0:00:03]} 35. gxh4 {[%clk 0:01:22]}  gxh4 {[%clk 0:00:03]} 36. Rxh4 {[%clk 0:01:23]}  a5 {[%clk 0:00:03]} 37. bxa5+ {[%clk 0:01:12]}  Kxa5 {[%clk 0:00:04]} 38. Rh8 {[%clk 0:01:12]}  Kb6 {[%clk 0:00:03]} 39. Rb8+ {[%clk 0:01:12]}  Ka7 {[%clk 0:00:03]} 40. Rd8 {[%clk 0:01:02]}  Kb6 {[%clk 0:00:03]} 41. a4 {[%clk 0:01:02]}  Ka5 {[%clk 0:00:01]} 42. Rb8 {[%clk 0:01:02]}  Rc7 {[%clk 0:00:01]} 43. f4 {[%clk 0:00:39]}  Bf5 {[%clk 0:00:01]} 44. g3 {[%clk 0:00:36]}  Bc2 {[%clk 0:00:02]} 45. g4 {[%clk 0:00:35]}  Bd1 {[%clk 0:00:02]} 46. g5 {[%clk 0:00:34]}  Ra7 {[%clk 0:00:03]} 47. f5 {[%clk 0:00:31]}  Bc2 {[%clk 0:00:04]} 48. f6 {[%clk 0:00:31]}  Bf5 {[%clk 0:00:04]} 49. Re8 {[%clk 0:00:20]}  Kb4 {[%clk 0:00:03]} 50. Re7 {[%clk 0:00:20]}  Ra5 {[%clk 0:00:02]} 51. Rb7+ {[%clk 0:00:20]}  Ka3 {[%clk 0:00:03]} 52. Rxf7 {[%clk 0:00:20]}  Ra8 {[%clk 0:00:02]} 53. e6 {[%clk 0:00:19]}  Rh8 {[%clk 0:00:03]} 54. e7 {[%clk 0:00:19]}  Rh4+ {[%clk 0:00:04]} 55. Ke5 {[%clk 0:00:20]}  Bg6 {[%clk 0:00:04]} 56. Rg7 {[%clk 0:00:20]}  Rh1 {[%clk 0:00:05]} 57. Rxg6 {[%clk 0:00:20]}  Re1+ {[%clk 0:00:06]} 58. Kd6 {[%clk 0:00:20]} 1-0


[Site "https://www.chess.com"]

[Event "Titled Tuesday Blitz January 04 2022"]
[White "Drozdowski, Kacper"]
[Black "Erdogdu, Mert"]
[WhiteFideId "1136720"]
[BlackFideId "6301495"]
[WhiteElo "2507"]
[BlackElo "2485"]
[Result "1-0"]
[Round "03"]
[TimeControl "180+1"]
[Date "2022.01.04"]
[WhiteClock "0:00:15"]
[BlackClock "0:00:03"]

1. e4 {[%clk 0:03:00]}  c5 {[%clk 0:02:57]} 2. Nf3 {[%clk 0:03:00]}  d6 {[%clk 0:02:56]} 3. d4 {[%clk 0:03:01]}  cxd4 {[%clk 0:02:56]} 4. Nxd4 {[%clk 0:03:02]}  Nf6 {[%clk 0:02:56]} 5. f3 {[%clk 0:03:02]}  e5 {[%clk 0:02:56]} 6. Nb3 {[%clk 0:03:02]}  a5 {[%clk 0:02:55]} 7. a4 {[%clk 0:02:33]}  Be6 {[%clk 0:02:53]} 8. Nc3 {[%clk 0:02:33]}  Be7 {[%clk 0:02:50]} 9. Bb5+ {[%clk 0:02:31]}  Nc6 {[%clk 0:02:47]} 10. Nd5 {[%clk 0:02:32]}  O-O {[%clk 0:02:45]} 11. Be3 {[%clk 0:02:30]}  Bxd5 {[%clk 0:02:41]} 12. exd5 {[%clk 0:02:30]}  Nb4 {[%clk 0:02:40]} 13. c4 {[%clk 0:02:26]}  Nh5 {[%clk 0:02:34]} 14. O-O {[%clk 0:02:25]}  Bg5 {[%clk 0:02:33]} 15. Bf2 {[%clk 0:02:25]}  b6 {[%clk 0:02:25]} 16. g3 {[%clk 0:02:20]}  g6 {[%clk 0:02:25]} 17. Qe2 {[%clk 0:02:15]}  f5 {[%clk 0:02:24]} 18. f4 {[%clk 0:01:59]}  exf4 {[%clk 0:02:16]} 19. Nd4 {[%clk 0:01:59]}  fxg3 {[%clk 0:02:08]} 20. hxg3 {[%clk 0:01:59]}  Ng7 {[%clk 0:02:02]} 21. Rae1 {[%clk 0:01:52]}  Ra7 {[%clk 0:01:38]} 22. Ne6 {[%clk 0:01:42]}  Nxe6 {[%clk 0:01:35]} 23. dxe6 {[%clk 0:01:37]}  Re7 {[%clk 0:01:29]} 24. Bd7 {[%clk 0:01:27]}  Bf6 {[%clk 0:01:21]} 25. Qd2 {[%clk 0:01:22]}  Qc7 {[%clk 0:00:57]} 26. Rd1 {[%clk 0:01:19]}  Be5 {[%clk 0:00:51]} 27. b3 {[%clk 0:01:17]}  Rd8 {[%clk 0:00:48]} 28. Rfe1 {[%clk 0:01:11]}  Kg7 {[%clk 0:00:44]} 29. Qg5 {[%clk 0:01:09]}  Rdxd7 {[%clk 0:00:36]} 30. exd7 {[%clk 0:01:10]}  Qxd7 {[%clk 0:00:35]} 31. Re2 {[%clk 0:00:59]}  Nc6 {[%clk 0:00:31]} 32. Qd2 {[%clk 0:00:58]}  Qe6 {[%clk 0:00:29]} 33. Qd5 {[%clk 0:00:57]}  Qxd5 {[%clk 0:00:29]} 34. Rxd5 {[%clk 0:00:58]}  Kf7 {[%clk 0:00:21]} 35. Kg2 {[%clk 0:00:56]}  h5 {[%clk 0:00:20]} 36. Red2 {[%clk 0:00:51]}  Rb7 {[%clk 0:00:19]} 37. Rb5 {[%clk 0:00:51]}  Ke6 {[%clk 0:00:18]} 38. Rxb6 {[%clk 0:00:51]}  Rc7 {[%clk 0:00:18]} 39. Rb5 {[%clk 0:00:49]}  Rc8 {[%clk 0:00:17]} 40. Rd1 {[%clk 0:00:49]}  g5 {[%clk 0:00:16]} 41. Rb7 {[%clk 0:00:49]}  Rh8 {[%clk 0:00:16]} 42. Rc7 {[%clk 0:00:47]}  Nb4 {[%clk 0:00:16]} 43. Ra7 {[%clk 0:00:46]}  Nc6 {[%clk 0:00:15]} 44. Ra6 {[%clk 0:00:47]}  Rc8 {[%clk 0:00:14]} 45. Be3 {[%clk 0:00:45]}  g4 {[%clk 0:00:14]} 46. Rh1 {[%clk 0:00:44]}  Nd4 {[%clk 0:00:12]} 47. Rxh5 {[%clk 0:00:41]}  Nxb3 {[%clk 0:00:10]} 48. Rh6+ {[%clk 0:00:41]}  Kd7 {[%clk 0:00:08]} 49. Rh7+ {[%clk 0:00:40]}  Ke6 {[%clk 0:00:08]} 50. Rh6+ {[%clk 0:00:39]}  Kd7 {[%clk 0:00:08]} 51. Bf4 {[%clk 0:00:36]}  Bxf4 {[%clk 0:00:08]} 52. gxf4 {[%clk 0:00:37]}  Rxc4 {[%clk 0:00:08]} 53. Raxd6+ {[%clk 0:00:36]}  Kc7 {[%clk 0:00:08]} 54. Rd3 {[%clk 0:00:31]}  Nc5 {[%clk 0:00:08]} 55. Rd5 {[%clk 0:00:31]}  Rc2+ {[%clk 0:00:07]} 56. Kf1 {[%clk 0:00:31]}  Ne4 {[%clk 0:00:07]} 57. Rg6 {[%clk 0:00:25]}  g3 {[%clk 0:00:06]} 58. Rd3 {[%clk 0:00:21]}  Rf2+ {[%clk 0:00:06]} 59. Kg1 {[%clk 0:00:21]}  Ra2 {[%clk 0:00:07]} 60. Re3 {[%clk 0:00:20]}  Rxa4 {[%clk 0:00:06]} 61. Re6 {[%clk 0:00:18]}  Ra2 {[%clk 0:00:06]} 62. Re5 {[%clk 0:00:17]}  a4 {[%clk 0:00:06]} 63. Rxf5 {[%clk 0:00:17]}  Nf2 {[%clk 0:00:06]} 64. Rc5+ {[%clk 0:00:17]}  Kb6 {[%clk 0:00:06]} 65. Rh5 {[%clk 0:00:17]}  a3 {[%clk 0:00:04]} 66. Rxg3 {[%clk 0:00:17]}  Ne4 {[%clk 0:00:05]} 67. Re3 {[%clk 0:00:17]}  Nc5 {[%clk 0:00:04]} 68. Rh8 {[%clk 0:00:16]}  Kb5 {[%clk 0:00:04]} 69. Ra8 {[%clk 0:00:16]}  Kc4 {[%clk 0:00:04]} 70. Raxa3 {[%clk 0:00:16]}  Rc2 {[%clk 0:00:05]} 71. f5 {[%clk 0:00:16]}  Nd7 {[%clk 0:00:04]} 72. Ra7 {[%clk 0:00:15]}  Nf6 {[%clk 0:00:03]} 73. Rc7+ {[%clk 0:00:15]}  Kd4 {[%clk 0:00:03]} 74. Rxc2 {[%clk 0:00:15]}  Kxe3 {[%clk 0:00:04]} 75. Rc6 {[%clk 0:00:15]}  Nd5 {[%clk 0:00:04]} 76. f6 {[%clk 0:00:15]}  Nf4 {[%clk 0:00:03]} 77. f7 {[%clk 0:00:15]} 1-0


[Site "https://www.chess.com"]

[Event "Titled Tuesday Blitz January 04 2022"]
[White "Gareyev, Timur"]
[Black "Nepomniachtchi, Ian"]
[WhiteFideId "14200937"]
[BlackFideId "4168119"]
[WhiteElo "2586"]
[BlackElo "2740"]
[Result "0-1"]
[Round "03"]
[TimeControl "180+1"]
[Date "2022.01.04"]
[WhiteClock "0:00:23"]
[BlackClock "0:01:08"]

1. e4 {[%clk 0:03:00]}  e5 {[%clk 0:02:56]} 2. f4 {[%clk 0:02:51]}  Nc6 {[%clk 0:02:57]} 3. Nf3 {[%clk 0:02:50]}  f5 {[%clk 0:02:57]} 4. d3 {[%clk 0:02:43]}  d6 {[%clk 0:02:55]} 5. Nc3 {[%clk 0:02:42]}  Nf6 {[%clk 0:02:55]} 6. g3 {[%clk 0:02:39]}  g6 {[%clk 0:02:54]} 7. Bg2 {[%clk 0:02:35]}  Bg7 {[%clk 0:02:54]} 8. fxe5 {[%clk 0:02:34]}  dxe5 {[%clk 0:02:53]} 9. O-O {[%clk 0:02:24]}  O-O {[%clk 0:02:53]} 10. exf5 {[%clk 0:02:20]}  gxf5 {[%clk 0:02:51]} 11. Bg5 {[%clk 0:02:19]}  Qd6 {[%clk 0:02:46]} 12. Kh1 {[%clk 0:02:15]}  a6 {[%clk 0:02:42]} 13. Nh4 {[%clk 0:02:11]}  Ng4 {[%clk 0:02:41]} 14. h3 {[%clk 0:01:55]}  Nh6 {[%clk 0:02:41]} 15. Qh5 {[%clk 0:01:50]}  Nd4 {[%clk 0:02:36]} 16. Nd5 {[%clk 0:01:46]}  Rf7 {[%clk 0:02:31]} 17. Rf2 {[%clk 0:01:18]}  Be6 {[%clk 0:02:30]} 18. Ne3 {[%clk 0:01:07]}  f4 {[%clk 0:02:28]} 19. Bxh6 {[%clk 0:00:50]}  fxe3 {[%clk 0:02:08]} 20. Bxe3 {[%clk 0:00:46]}  Rxf2 {[%clk 0:02:04]} 21. Bxf2 {[%clk 0:00:47]}  Rf8 {[%clk 0:01:59]} 22. Bxd4 {[%clk 0:00:43]}  Qxd4 {[%clk 0:01:52]} 23. Be4 {[%clk 0:00:43]}  h6 {[%clk 0:01:49]} 24. Ng6 {[%clk 0:00:37]}  Rf7 {[%clk 0:01:42]} 25. c3 {[%clk 0:00:36]}  Qf2 {[%clk 0:01:23]} 26. Nxe5 {[%clk 0:00:36]}  Bxe5 {[%clk 0:01:10]} 27. Qg6+ {[%clk 0:00:28]}  Kf8 {[%clk 0:01:09]} 28. Qxe6 {[%clk 0:00:23]}  Qxg3 {[%clk 0:01:09]} 29. Qxh6+ {[%clk 0:00:23]}  Ke7 {[%clk 0:01:08]} 0-1


[Site "https://www.chess.com"]

[Event "Titled Tuesday Blitz January 04 2022"]
[White "Grischuk, Alexander"]
[Black "Aitbayev, Aslan"]
[WhiteFideId "4126025"]
[BlackFideId "13704613"]
[WhiteElo "2762"]
[BlackElo "2385"]
[Result "1-0"]
[Round "03"]
[TimeControl "180+1"]
[Date "2022.01.04"]
[WhiteClock "0:00:05"]
[BlackClock "0:00:05"]

1. e4 {[%clk 0:03:00]}  e6 {[%clk 0:02:58]} 2. d4 {[%clk 0:03:00]}  d5 {[%clk 0:02:58]} 3. e5 {[%clk 0:03:01]}  c5 {[%clk 0:02:58]} 4. c3 {[%clk 0:03:01]}  Nc6 {[%clk 0:02:59]} 5. Nf3 {[%clk 0:03:01]}  Bd7 {[%clk 0:02:59]} 6. Be2 {[%clk 0:03:02]}  Nge7 {[%clk 0:02:54]} 7. Na3 {[%clk 0:03:00]}  cxd4 {[%clk 0:02:52]} 8. cxd4 {[%clk 0:03:01]}  Nf5 {[%clk 0:02:53]} 9. Nc2 {[%clk 0:03:00]}  Qb6 {[%clk 0:02:51]} 10. O-O {[%clk 0:03:00]}  Rc8 {[%clk 0:02:48]} 11. Kh1 {[%clk 0:02:57]}  Nb4 {[%clk 0:02:40]} 12. Nxb4 {[%clk 0:02:56]}  Bxb4 {[%clk 0:02:41]} 13. g4 {[%clk 0:02:53]}  Nh6 {[%clk 0:02:39]} 14. Rg1 {[%clk 0:02:52]}  Bb5 {[%clk 0:02:19]} 15. Bxb5+ {[%clk 0:02:50]}  Qxb5 {[%clk 0:02:19]} 16. Be3 {[%clk 0:02:37]}  Ng8 {[%clk 0:02:08]} 17. Qb3 {[%clk 0:02:31]}  a6 {[%clk 0:02:07]} 18. Rac1 {[%clk 0:02:07]}  Ne7 {[%clk 0:02:05]} 19. Rxc8+ {[%clk 0:02:05]}  Nxc8 {[%clk 0:02:06]} 20. Rc1 {[%clk 0:02:04]}  O-O {[%clk 0:01:53]} 21. a3 {[%clk 0:01:58]}  Ba5 {[%clk 0:01:47]} 22. Qxb5 {[%clk 0:01:57]}  axb5 {[%clk 0:01:47]} 23. Bd2 {[%clk 0:01:48]}  Bb6 {[%clk 0:01:36]} 24. Bb4 {[%clk 0:01:48]}  Rd8 {[%clk 0:01:28]} 25. Bc5 {[%clk 0:01:45]}  Bc7 {[%clk 0:01:09]} 26. Rc3 {[%clk 0:01:42]}  Rd7 {[%clk 0:00:57]} 27. g5 {[%clk 0:01:20]}  h6 {[%clk 0:00:40]} 28. Kg2 {[%clk 0:01:17]}  hxg5 {[%clk 0:00:30]} 29. Nxg5 {[%clk 0:01:18]}  b6 {[%clk 0:00:29]} 30. Bb4 {[%clk 0:01:13]}  Na7 {[%clk 0:00:29]} 31. f4 {[%clk 0:01:07]}  Bd8 {[%clk 0:00:28]} 32. Bd6 {[%clk 0:00:57]}  Bxg5 {[%clk 0:00:23]} 33. fxg5 {[%clk 0:00:58]}  Kh7 {[%clk 0:00:23]} 34. Kg3 {[%clk 0:00:55]}  Kg6 {[%clk 0:00:19]} 35. Kg4 {[%clk 0:00:55]}  f5+ {[%clk 0:00:19]} 36. Kf4 {[%clk 0:00:54]}  b4 {[%clk 0:00:16]} 37. Bxb4 {[%clk 0:00:51]}  Nb5 {[%clk 0:00:16]} 38. Rc6 {[%clk 0:00:50]}  Nxd4 {[%clk 0:00:16]} 39. Rxb6 {[%clk 0:00:51]}  Rc7 {[%clk 0:00:15]} 40. h4 {[%clk 0:00:44]}  Rc4 {[%clk 0:00:14]} 41. Ke3 {[%clk 0:00:41]}  Kh5 {[%clk 0:00:12]} 42. Kd3 {[%clk 0:00:36]}  Nc6 {[%clk 0:00:09]} 43. Bc3 {[%clk 0:00:31]}  f4 {[%clk 0:00:07]} 44. b3 {[%clk 0:00:30]}  Rc5 {[%clk 0:00:07]} 45. b4 {[%clk 0:00:23]}  Rc4 {[%clk 0:00:07]} 46. b5 {[%clk 0:00:24]}  Ne7 {[%clk 0:00:07]} 47. Rxe6 {[%clk 0:00:23]}  Nf5 {[%clk 0:00:08]} 48. Rc6 {[%clk 0:00:21]}  f3 {[%clk 0:00:06]} 49. Rxc4 {[%clk 0:00:06]}  dxc4+ {[%clk 0:00:06]} 50. Kd2 {[%clk 0:00:06]}  f2 {[%clk 0:00:02]} 51. Ke2 {[%clk 0:00:06]}  Ng3+ {[%clk 0:00:03]} 52. Kxf2 {[%clk 0:00:06]}  Ne4+ {[%clk 0:00:04]} 53. Ke1 {[%clk 0:00:05]}  Nxc3 {[%clk 0:00:05]} 54. b6 {[%clk 0:00:05]} 1-0


[Site "https://www.chess.com"]

[Event "Titled Tuesday Blitz January 04 2022"]
[White "Harutjunyan, Gevorg"]
[Black "Provotorov, Ivan"]
[WhiteFideId "13300873"]
[BlackFideId "4154657"]
[WhiteElo "2498"]
[BlackElo "2291"]
[Result "1-0"]
[Round "03"]
[TimeControl "180+1"]
[Date "2022.01.04"]
[WhiteClock "0:00:55"]
[BlackClock "0:00:01"]

1. e4 {[%clk 0:03:00]}  c6 {[%clk 0:03:00]} 2. d4 {[%clk 0:02:59]}  d5 {[%clk 0:03:01]} 3. e5 {[%clk 0:02:59]}  c5 {[%clk 0:03:00]} 4. dxc5 {[%clk 0:02:58]}  e6 {[%clk 0:03:00]} 5. Bd3 {[%clk 0:02:55]}  Bxc5 {[%clk 0:02:57]} 6. Qg4 {[%clk 0:02:54]}  Kf8 {[%clk 0:02:39]} 7. Nf3 {[%clk 0:02:54]}  Ne7 {[%clk 0:02:35]} 8. O-O {[%clk 0:02:49]}  Nbc6 {[%clk 0:02:34]} 9. a3 {[%clk 0:02:43]}  a5 {[%clk 0:02:31]} 10. Nc3 {[%clk 0:02:41]}  Ng6 {[%clk 0:02:30]} 11. Qg3 {[%clk 0:02:32]}  Nd4 {[%clk 0:02:20]} 12. Ng5 {[%clk 0:02:27]}  Bd7 {[%clk 0:02:00]} 13. Be3 {[%clk 0:02:23]}  Ba7 {[%clk 0:01:50]} 14. h4 {[%clk 0:02:17]}  Qc7 {[%clk 0:01:31]} 15. h5 {[%clk 0:02:05]}  Nxe5 {[%clk 0:01:10]} 16. h6 {[%clk 0:02:05]}  g6 {[%clk 0:00:55]} 17. Rae1 {[%clk 0:01:59]}  f6 {[%clk 0:00:36]} 18. Qf4 {[%clk 0:01:56]}  Nf5 {[%clk 0:00:15]} 19. Bxa7 {[%clk 0:01:55]}  Rxa7 {[%clk 0:00:14]} 20. Nf3 {[%clk 0:01:41]}  Nxf3+ {[%clk 0:00:12]} 21. Qxf3 {[%clk 0:01:42]}  Ra8 {[%clk 0:00:08]} 22. g4 {[%clk 0:01:38]}  Rg8 {[%clk 0:00:08]} 23. Kh1 {[%clk 0:01:31]}  Nd6 {[%clk 0:00:04]} 24. Qxf6+ {[%clk 0:01:28]}  Nf7 {[%clk 0:00:05]} 25. Nxd5 {[%clk 0:01:26]}  Qd8 {[%clk 0:00:04]} 26. Qxd8+ {[%clk 0:01:24]}  Rxd8 {[%clk 0:00:05]} 27. Nf6 {[%clk 0:01:24]}  Bc6+ {[%clk 0:00:04]} 28. Kh2 {[%clk 0:01:17]}  Rh8 {[%clk 0:00:05]} 29. f4 {[%clk 0:01:14]}  Nxh6 {[%clk 0:00:05]} 30. Rxe6 {[%clk 0:01:09]}  Kf7 {[%clk 0:00:04]} 31. Rfe1 {[%clk 0:01:07]}  Rhf8 {[%clk 0:00:03]} 32. g5 {[%clk 0:01:05]}  Nf5 {[%clk 0:00:03]} 33. Bc4 {[%clk 0:00:54]}  Kg7 {[%clk 0:00:02]} 34. Re7+ {[%clk 0:00:54]}  Nxe7 {[%clk 0:00:01]} 35. Rxe7+ {[%clk 0:00:55]}  Rf7 {[%clk 0:00:01]} 36. Rxf7+ {[%clk 0:00:55]} 1-0


[Site "https://www.chess.com"]

[Event "Titled Tuesday Blitz January 04 2022"]
[White "Kobalia, Mikhail"]
[Black "Vovk, Orest"]
[WhiteFideId "4119150"]
[BlackFideId "14113490"]
[WhiteElo "2667"]
[BlackElo "2203"]
[Result "1/2-1/2"]
[Round "03"]
[TimeControl "180+1"]
[Date "2022.01.04"]
[WhiteClock "0:00:21"]
[BlackClock "0:01:34"]

1. e4 {[%clk 0:03:00]}  g5 {[%clk 0:02:59]} 2. d4 {[%clk 0:02:59]}  h6 {[%clk 0:02:58]} 3. h4 {[%clk 0:02:59]}  g4 {[%clk 0:02:59]} 4. Qxg4 {[%clk 0:02:56]}  d5 {[%clk 0:02:59]} 5. Qe2 {[%clk 0:02:56]}  dxe4 {[%clk 0:02:59]} 6. Qxe4 {[%clk 0:02:54]}  Nf6 {[%clk 0:02:59]} 7. Qd3 {[%clk 0:02:54]}  Nc6 {[%clk 0:02:59]} 8. Nf3 {[%clk 0:02:52]}  Bg4 {[%clk 0:02:59]} 9. Nbd2 {[%clk 0:02:21]}  Qd5 {[%clk 0:02:58]} 10. c4 {[%clk 0:02:16]}  Qh5 {[%clk 0:02:56]} 11. d5 {[%clk 0:02:15]}  O-O-O {[%clk 0:02:37]} 12. Qb3 {[%clk 0:02:14]}  Ne5 {[%clk 0:02:25]} 13. Nxe5 {[%clk 0:02:13]}  Qxe5+ {[%clk 0:02:25]} 14. Qe3 {[%clk 0:02:13]}  Qxe3+ {[%clk 0:02:22]} 15. fxe3 {[%clk 0:02:14]}  e6 {[%clk 0:02:20]} 16. e4 {[%clk 0:02:12]}  exd5 {[%clk 0:02:18]} 17. cxd5 {[%clk 0:02:03]}  Nxe4 {[%clk 0:02:10]} 18. Nxe4 {[%clk 0:02:01]}  Re8 {[%clk 0:02:10]} 19. Bd3 {[%clk 0:02:01]}  f5 {[%clk 0:02:10]} 20. O-O {[%clk 0:02:00]}  fxe4 {[%clk 0:02:07]} 21. Bb5 {[%clk 0:02:00]}  Bc5+ {[%clk 0:02:05]} 22. Kh2 {[%clk 0:01:59]}  Ref8 {[%clk 0:01:50]} 23. Rxf8+ {[%clk 0:01:57]}  Rxf8 {[%clk 0:01:49]} 24. Bxh6 {[%clk 0:01:57]}  Bd6+ {[%clk 0:01:41]} 25. Kg1 {[%clk 0:01:52]}  Bc5+ {[%clk 0:01:35]} 26. Kh2 {[%clk 0:01:44]}  Bd6+ {[%clk 0:01:34]} 27. Kg1 {[%clk 0:01:38]}  Bc5+ {[%clk 0:01:34]} 28. Kh2 {[%clk 0:00:21]} 1/2-1/2


[Site "https://www.chess.com"]

[Event "Titled Tuesday Blitz January 04 2022"]
[White "Kravtsiv, Martyn"]
[Black "Primbetov, Kazbek"]
[WhiteFideId "14113147"]
[BlackFideId "13702297"]
[WhiteElo "2694"]
[BlackElo "2184"]
[Result "1-0"]
[Round "03"]
[TimeControl "180+1"]
[Date "2022.01.04"]
[WhiteClock "0:00:36"]
[BlackClock "0:00:02"]

1. e4 {[%clk 0:03:00]}  c5 {[%clk 0:02:59]} 2. Nf3 {[%clk 0:03:00]}  d6 {[%clk 0:03:00]} 3. Bb5+ {[%clk 0:02:59]}  Bd7 {[%clk 0:03:00]} 4. Bxd7+ {[%clk 0:02:58]}  Qxd7 {[%clk 0:03:01]} 5. c4 {[%clk 0:02:58]}  Nc6 {[%clk 0:03:01]} 6. d4 {[%clk 0:02:54]}  Nf6 {[%clk 0:02:54]} 7. Nc3 {[%clk 0:02:53]}  cxd4 {[%clk 0:02:53]} 8. Nxd4 {[%clk 0:02:52]}  Nxd4 {[%clk 0:02:50]} 9. Qxd4 {[%clk 0:02:51]}  g6 {[%clk 0:02:50]} 10. O-O {[%clk 0:02:20]}  Bg7 {[%clk 0:02:49]} 11. Qd3 {[%clk 0:02:20]}  O-O {[%clk 0:02:48]} 12. h3 {[%clk 0:02:13]}  Rfc8 {[%clk 0:02:47]} 13. Be3 {[%clk 0:02:11]}  Qc6 {[%clk 0:02:38]} 14. b3 {[%clk 0:02:10]}  e6 {[%clk 0:02:36]} 15. Rac1 {[%clk 0:02:09]}  Nd7 {[%clk 0:02:31]} 16. Rfd1 {[%clk 0:02:07]}  Be5 {[%clk 0:02:18]} 17. Bd4 {[%clk 0:01:33]}  Bf4 {[%clk 0:02:13]} 18. Re1 {[%clk 0:01:32]}  Bxc1 {[%clk 0:02:11]} 19. Rxc1 {[%clk 0:01:31]}  a6 {[%clk 0:02:00]} 20. Qd2 {[%clk 0:01:27]}  b5 {[%clk 0:01:54]} 21. Qh6 {[%clk 0:01:20]}  f6 {[%clk 0:01:35]} 22. h4 {[%clk 0:01:20]}  bxc4 {[%clk 0:01:27]} 23. h5 {[%clk 0:01:19]}  gxh5 {[%clk 0:01:04]} 24. Re1 {[%clk 0:01:06]}  e5 {[%clk 0:00:54]} 25. Nd5 {[%clk 0:00:58]}  exd4 {[%clk 0:00:27]} 26. Ne7+ {[%clk 0:00:56]}  Kh8 {[%clk 0:00:27]} 27. Ng6+ {[%clk 0:00:51]}  Kg8 {[%clk 0:00:27]} 28. Ne7+ {[%clk 0:00:51]}  Kh8 {[%clk 0:00:27]} 29. Nxc6 {[%clk 0:00:50]}  Rxc6 {[%clk 0:00:27]} 30. bxc4 {[%clk 0:00:50]}  Rxc4 {[%clk 0:00:22]} 31. Qxh5 {[%clk 0:00:50]}  Ne5 {[%clk 0:00:20]} 32. Qh6 {[%clk 0:00:48]}  Nd7 {[%clk 0:00:20]} 33. Qf4 {[%clk 0:00:46]}  Rac8 {[%clk 0:00:02]} 34. Qxd6 {[%clk 0:00:45]}  R8c7 {[%clk 0:00:02]} 35. Rd1 {[%clk 0:00:41]}  Kg7 {[%clk 0:00:03]} 36. Rxd4 {[%clk 0:00:39]}  Rc1+ {[%clk 0:00:03]} 37. Kh2 {[%clk 0:00:38]}  Ne5 {[%clk 0:00:03]} 38. f3 {[%clk 0:00:38]}  R1c2 {[%clk 0:00:03]} 39. Rd2 {[%clk 0:00:38]}  R2c6 {[%clk 0:00:02]} 40. Qd8 {[%clk 0:00:36]} 1-0


[Site "https://www.chess.com"]

[Event "Titled Tuesday Blitz January 04 2022"]
[White "Lenderman, Aleksandr"]
[Black "Alexiadis, Hristos"]
[WhiteFideId "2021285"]
[BlackFideId "4249623"]
[WhiteElo "2651"]
[BlackElo "2416"]
[Result "1-0"]
[Round "03"]
[TimeControl "180+1"]
[Date "2022.01.04"]
[WhiteClock "0:02:22"]
[BlackClock "0:02:02"]

1. Nf3 {[%clk 0:03:00]}  Nf6 {[%clk 0:02:59]} 2. c4 {[%clk 0:02:59]}  e6 {[%clk 0:02:59]} 3. Nc3 {[%clk 0:02:58]}  Bb4 {[%clk 0:02:58]} 4. Qc2 {[%clk 0:02:53]}  O-O {[%clk 0:02:56]} 5. d4 {[%clk 0:02:53]}  d5 {[%clk 0:02:54]} 6. a3 {[%clk 0:02:53]}  Bxc3+ {[%clk 0:02:51]} 7. Qxc3 {[%clk 0:02:54]}  Ne4 {[%clk 0:02:49]} 8. Qc2 {[%clk 0:02:53]}  c5 {[%clk 0:02:45]} 9. dxc5 {[%clk 0:02:46]}  Nc6 {[%clk 0:02:40]} 10. b4 {[%clk 0:02:46]}  a5 {[%clk 0:02:37]} 11. b5 {[%clk 0:02:46]}  Ne7 {[%clk 0:02:37]} 12. e3 {[%clk 0:02:41]}  Nxc5 {[%clk 0:02:34]} 13. Bb2 {[%clk 0:02:41]}  Ne4 {[%clk 0:02:29]} 14. Bd3 {[%clk 0:02:40]}  f5 {[%clk 0:02:27]} 15. O-O {[%clk 0:02:39]}  Bd7 {[%clk 0:02:26]} 16. cxd5 {[%clk 0:02:39]}  exd5 {[%clk 0:02:26]} 17. Rfc1 {[%clk 0:02:35]}  Qb6 {[%clk 0:02:22]} 18. Qc7 {[%clk 0:02:32]}  Qxc7 {[%clk 0:02:16]} 19. Rxc7 {[%clk 0:02:32]}  Rad8 {[%clk 0:02:15]} 20. Bxe4 {[%clk 0:02:22]}  dxe4 {[%clk 0:02:02]} 21. Ne5 {[%clk 0:02:22]} 1-0


[Site "https://www.chess.com"]